Cogmind - Beta 16 @@@ ROGUE MODE // 2025.12.02 @ 16:00:08 Player: Skysub Result: Destroyed self with Rocket Launcher Performance ------------- Evolutions (0) 0 Regions Visited (3) 600 Robots Destroyed (17) 85 Value Destroyed (338) 338 Prototype IDs (2) 40 Alien Tech Used (0) 0 Bonus (0) 0 TOTAL SCORE: 1063 Bonus ------- None Cogmind --------- Core Integrity 0/250 Matter 269/300 Energy 230/250 System Corruption 2% Temperature Cool (0) Movement Treading (480) Ox4 Location -10/Subcaves Parts ------- > --- POWER (1) -------- Ion Engine > --- PROPULSION (2) --- Light Treads Subdweller Monowheel > --- UTILITY (2) ------ Huge Storage Unit Tractor Beam > --- WEAPON (2) ------- Light Assault Rifle Rocket Launcher > --- INVENTORY (25) --- Subdweller Power Source Light Treads Subdweller Monowheel Compact Matter Pod (150) Splice Drone Bay (6/6) Improved EM Shotgun Improved EM Shotgun Improved EM Shotgun Small Laser Light Assault Rifle Rocket Launcher Ripper Peak State ------------ > --- POWER ------------ Ion Engine > --- PROPULSION ------- Wheel Compact Wheel > --- UTILITY ---------- Huge Storage Unit Splice Drone Bay > --- WEAPON ----------- Small Laser Rocket Launcher > --- INVENTORY -------- Ion Engine Light Treads Light Treads Wheel Compact Matter Pod Tractor Beam Improved EM Shotgun Improved EM Shotgun Improved EM Shotgun Light Assault Rifle Light Assault Rifle Light Assault Rifle Rocket Launcher Ripper [Rating: 16] Favorites ----------- Power Ion Engine Engine Ion Engine Propulsion Wheel Treads Light Treads Wheel Wheel Utility Huge Storage Unit Device Improved Terrain Scanner Storage Huge Storage Unit Weapon Light Assault Rifle Energy Gun Small Laser Ballistic Gun Light Assault Rifle Launcher Rocket Launcher Slashing Weapon Ripper Build | -11 -10 -10 -10 ------- Run | Yrd Mat Min Sub Slots Evolved . | . . . . Power . | . . . . Propulsion . | . . . . Utility . | . . . . Weapon . | . . . . Parts Attached 25 | 6 6 3 10 Power 2 | 1 . . 1 Engine 2 | 1 . . 1 Core . | . . . . Reactor . | . . . . Propulsion 6 | 2 2 . 2 Treads 2 | 2 . . . Leg . | . . . . Wheel 4 | . 2 . 2 Hover . | . . . . Flight . | . . . . Utility 6 | 1 3 1 1 Device 3 | . 1 1 1 Storage 3 | 1 2 . . Processor . | . . . . Hackware . | . . . . Protection . | . . . . Artifact . | . . . . Weapon 11 | 2 1 2 6 Energy Gun 3 | . 1 1 1 Energy Cannon . | . . . . Ballistic Gun 5 | 2 . . 3 Ballistic Cannon . | . . . . Launcher 2 | . . 1 1 Special Weapon . | . . . . Impact Weapon . | . . . . Slashing Weapon 1 | . . . 1 Piercing Weapon . | . . . . Special Melee Weapon . | . . . . Unidentified Prototypes 2 | . 1 1 . Parts Lost 6 | . . . 6 Power 1 | . . . 1 Propulsion 3 | . . . 3 Utility 1 | . . . 1 Weapon 1 | . . . 1 Highest Loss Streak 4 | . . . 4 To Critical Strikes . | . . . . Average Backups 12 | 4 10 13 13 Power 1 | . 1 1 1 Propulsion 2 | 2 3 3 1 Utility 2 | . 2 2 2 Weapon 6 | . 3 7 7 Tool/Special . | . . . . Unused Backups 7 | . 1 1 5 Power 1 | . . . 1 Propulsion 1 | . . . 1 Utility 1 | . . . 1 Weapon 4 | . 1 1 2 Tool/Special . | . . . . Average Slot Usage (%) 93 | . 84 93 98 Engine 13 | . 14 14 13 Treads 6 | . 23 . 4 Wheel 20 | . 4 28 22 Device 11 | . 2 14 13 Storage 14 | . 14 14 14 Energy Gun 5 | . . 14 . Ballistic Gun 14 | . 24 . 20 Launcher 3 | . . 8 1 Slashing Weapon 2 | . . . 5 Peak Build Rating 16 | 7 12 16 15 Average Rating 10 | 4 7 11 12 On Entrance 7 | . 7 9 13 Avg Prop Armor Cover (%) 13 | . . . 13 Naked Turns . | . . . . Heaviest Build 94 | 13 89 91 94 Greatest Support 40 | 40 40 26 40 Greatest Overweight (x) 8 | . 3 3 8 Average Overweight (x) 2 | . . 3 4 Largest Inventory Capacity 25 | 8 25 25 25 Average Capacity 21 | 6 12 25 25 Most Carried 15 | 8 12 15 15 Average Carried 12 | 4 10 13 13 Final Capacity 25 | 8 25 25 25 Final Carried 15 | 8 12 15 12 Class Distribution -------------------- 78% | Mutant 21% | Scavenger-Mutant Dominant Class ---------------- Mutant | -10/Materials Mutant | -10/Mines Mutant | -10/Subcaves Resources | -11 -10 -10 -10 ----------- Run | Yrd Mat Min Sub Matter Collected 755 | 185 35 182 353 Remotely 203 | . . . 203 Salvage Created 326 | 106 69 11 140 Parts 31 | 9 5 5 12 Haulers Intercepted . | . . . . Recyclers Shooed . | . . . . Parts Field Recycled . | . . . . Retrieved Matter . | . . . . Parts Self-Destructed 12 | . . . 12 Prevented 1 | . . . 1 Parts Restored . | . . . . Kills | -11 -10 -10 -10 ------- Run | Yrd Mat Min Sub Combat Hostiles Destroyed 12 | . 2 3 7 Guns 5 | . 2 . 3 AOE 7 | . . 3 4 Classes Destroyed 6 | 2 1 1 2 Tunneler 2 | 2 . . . Recycler 1 | 1 . . . Turret 2 | . . . 2 Swarmer 7 | . . 3 4 Grunt 2 | . 2 . . Subdweller 3 | . . . 3 Best Kill Streak 6 | 3 1 3 6 Combat Bots Only 4 | . 1 3 4 Max Kills in Single Turn 3 | 1 1 3 2 Gunslinging . | . . . . Exploded 3 | . . 3 2 Melee . | . . . . Uniques/NPCs Destroyed . | . . . . Combat | -11 -10 -10 -10 -------- Run | Yrd Mat Min Sub Hostile Shots Fired 98 | . 13 6 79 Missed 42 | . 4 2 36 Hits 56 | . 9 4 43 Projectile 56 | . 9 4 43 Critical Strikes 1 | . . . 1 Damage Taken 852 | . 100 32 720 Core 267 | . 12 7 248 Absorbed by Shields . | . . . . Core Remaining (%) 100 | 100 . . . Volleys Fired 43 | 4 12 1 26 Largest 2 | 2 2 1 2 Hottest 85 | 40 40 33 85 Shots Fired 81 | 8 24 1 48 Gun 65 | 8 24 . 33 Cannon . | . . . . Launcher 16 | . . 1 15 Special . | . . . . Kinetic 61 | 8 24 . 29 Thermal 2 | . . . 2 Explosive 16 | . . 1 15 Electromagnetic 2 | . . . 2 Robot Hit Streak 13 | 4 6 . 13 Robot Miss Streak 3 | 1 3 . 3 Penetration Max . | . . . . Secondary Targets . | . . . . Shots Hit Robots 57 | 5 15 . 37 Core Hits 34 | 4 5 5 20 Critical Kills . | . . . . Critical Parts Destroyed . | . . . . Critical Strikes . | . . . . Melee Attacks 36 | . . . 36 Impact . | . . . . Slashing 36 | . . . 36 Piercing . | . . . . Sneak Attacks . | . . . . Combat Hostiles . | . . . . Follow-up Attacks . | . . . . Damage Inflicted 1176 | 53 141 95 887 Guns 407 | 53 137 . 217 Cannons . | . . . . Explosions 735 | . . 95 640 Melee 30 | . . . 30 Ramming 4 | . 4 . . Kinetic 385 | 53 137 . 195 Thermal 12 | . . . 12 Explosive 735 | . . 95 640 Electromagnetic 10 | . . . 10 Impact . | . . . . Slashing 30 | . . . 30 Piercing . | . . . . Highest Corruption 2 | . . . 2 Average Corruption 2 | . . . 2 Corruption Purged . | . . . . Corruption Blocked . | . . . . Effects 3 | . . . 3 Message Errors 1 | . . . 1 Matter Fused 1 | . . . 1 Misfires 1 | . . . 1 Overload Shots . | . . . . Overflow Damage 54 | . . . 54 Projectiles . | . . . . Explosions 54 | . . . 54 Melee . | . . . . Knockbacks . | . . . . Impact . | . . . . Kinetic . | . . . . Secondary . | . . . . Self-Inflicted Damage 93 | . . . 93 Shots 3 | . . . 3 Rammed 1 | . 1 . . Targets Rammed 1 | . 1 . . Kicked . | . . . . Crushed . | . . . . Highest Temperature 12 | . 12 . . Average Temperature 7 | . 7 . . Received Heat Transfer 174 | . 54 . 120 Siege Activations . | . . . . Martial Activations . | . . . . Shielding Activations . | . . . . Robots Disrupted . | . . . . Combat Hostiles . | . . . . Robots Corrupted . | . . . . Combat Hostiles . | . . . . Parts Fried . | . . . . Impact Corruptions . | . . . . Robots Melted . | . . . . Combat Hostiles . | . . . . Parts Melted . | . . . . Heat Transferred 25 | . . . 25 Parts Sabotaged . | . . . . Parts Stolen . | . . . . Parts Stripped . | . . . . Power Chain Reactions . | . . . . Alert | -11 -10 -10 -10 ------- Run | Yrd Mat Min Sub Maximum Alert Level . | . . . . Low Security (%) 100 | 100 100 100 . Level 1 . | . . . . Level 2 . | . . . . Level 3 . | . . . . Level 4 . | . . . . Level 5 . | . . . . High Security . | . . . . Max Security . | . . . . Peak Influence 80 | 10 30 80 . Initial . | . . . . Average 7 | 1 4 9 . Influence Increases 434 | 15 69 80 270 Destroy 0b10 Robot/C 220 | . 40 60 120 Destroy 0b10 Robot/NC 15 | 15 . . . Destroy Leader 30 | . 20 10 . Successful Hack 9 | . 9 . . Destroy Structure 10 | . . 10 . Lose Combat Pursuer 150 | . . . 150 Influence Decreases 434 | 15 69 80 270 Time Decay 424 | 15 69 80 260 Lost Part 10 | . . . 10 Squads Dispatched 2 | . 2 . . Investigation 1 | . 1 . . Extermination . | . . . . Reinforcement 1 | . 1 . . Assault . | . . . . Garrison . | . . . . Intercept . | . . . . Searches Triggered . | . . . . Construction Impeded . | . . . . Haulers Reinforced . | . . . . Active Scanning Responses . | . . . . Cargo Convoy Interrupts . | . . . . Stealth | -11 -10 -10 -10 --------- Run | Yrd Mat Min Sub Distress Signals . | . . . . Communications Jammed . | . . . . Distress Signals . | . . . . Times Spotted 24 | . 5 3 16 Peak Tracking Total 5 | . 1 3 5 Tactical Retreats 2 | . . . 2 Traps | -11 -10 -10 -10 ------- Run | Yrd Mat Min Sub Traps Triggered . | . . . . Indirectly . | . . . . Trap Hack Attempts . | . . . . Triggered . | . . . . Disarmed . | . . . . Reprogrammed . | . . . . Reused . | . . . . Traps Extracted . | . . . . Installed . | . . . . Triggered . | . . . . Machines | -11 -10 -10 -10 ---------- Run | Yrd Mat Min Sub Machines Disabled 3 | . . . 3 Max in Single Turn 3 | . . . 3 Machines Repaired . | . . . . Machines Dismantled . | . . . . Machines Sabotaged . | . . . . Overloaded Fab Kills . | . . . . Hacking | -11 -10 -10 -10 --------- Run | Yrd Mat Min Sub Machines Accessed 3 | . 2 1 . Terminals 1 | . 1 . . Fabricators . | . . . . Repair Stations . | . . . . Recycling Units 1 | . 1 . . Scanalyzers . | . . . . Garrison Access . | . . . . Total Hacks 6 | . 5 1 . Successful 4 | . 3 1 . Failed 2 | . 2 . . Catastrophic . | . . . . Database Lockouts . | . . . . Manual 3 | . 3 . . Terminals 2 | . 2 . . Fabricators . | . . . . Repair Stations . | . . . . Recycling Units 3 | . 3 . . Scanalyzers . | . . . . Garrison Access . | . . . . Terminal Hacks 1 | . . 1 . Open Door 1 | . . 1 . Fabricator Hacks . | . . . . Repair Station Hacks . | . . . . Recycling Unit Hacks 1 | . 1 . . Report Inventory 1 | . 1 . . Scanalyzer . | . . . . Garrison Access Hacks . | . . . . Unauthorized Hacks 2 | . 2 . . Terminals 2 | . 2 . . Botnet 1 | . 1 . . Skim 1 | . 1 . . Fabricators . | . . . . Repair Stations . | . . . . Recycling Units . | . . . . Scanalyzers . | . . . . Garrison Access . | . . . . Data Cores Recovered . | . . . . Used . | . . . . Hacking Detections 2 | . 2 . . Full Trace Events 1 | . 1 . . Feedback Events . | . . . . Feedback Blocked . | . . . . Robot Schematics Acquired . | . . . . Robots Built . | . . . . Authchips . | . . . . Time . | . . . . Total Robot Build Rating . | . . . . Part Schematics Acquired . | . . . . Parts Built . | . . . . Authchips . | . . . . Time . | . . . . Total Part Build Rating . | . . . . Part Studies Acquired . | . . . . Parts Repaired . | . . . . Time . | . . . . Parts Recycled . | . . . . Recycled Matter . | . . . . Retrieved Matter . | . . . . Retrieved Components . | . . . . Parts Scanalyzed . | . . . . Part Schematics Acquired . | . . . . Parts Damaged . | . . . . Bothacking | -11 -10 -10 -10 ------------ Run | Yrd Mat Min Sub Used RIF Installer . | . . . . Robots Hacked . | . . . . Non-combat . | . . . . Combat . | . . . . Robot Hacks Applied . | . . . . Relay Couplers Released . | . . . . Fabnet Peak Effective % . | . . . . Robots Rewired . | . . . . Allies Hacked . | . . . . Hacks Repelled . | . . . . Allies | -11 -10 -10 -10 -------- Run | Yrd Mat Min Sub Total Allies . | . . . . Largest Group . | . . . . Highest-Rated Group . | . . . . Highest-Rated Ally . | . . . . Total Orders . | . . . . Ally Attacks . | . . . . Total Damage . | . . . . Kills . | . . . . Allies Corrupted . | . . . . Allies Melted . | . . . . Intel | -11 -10 -10 -10 ------- Run | Yrd Mat Min Sub Active Infowar (turns) 1375 | . 60 700 615 Terrain 1375 | . 60 700 615 Robot Analysis Total . | . . . . Derelict Logs Recovered 1 | . . 1 . Drone Launches . | . . . . Drone Recoveries . | . . . . Exploration | -11 -10 -10 -10 ------------- Run | Yrd Mat Min Sub Turns Passed 2167 | 125 399 702 941 Spaces Moved 1187 | 63 220 505 399 Core 3 | 3 . . . Treads 244 | 60 181 . 3 Legs . | . . . . Wheels 940 | . 39 505 396 Hover . | . . . . Flight . | . . . . Fastest Speed 50 | 50 135 135 135 Average Speed 145 | 154 155 135 150 Slowest Speed 320 | 160 160 135 320 Overloaded Moves . | . . . . Propulsion Burnouts . | . . . . Robots Hopped . | . . . . Potential Cave-ins 19 | . . . 19 Cave-ins Triggered 1 | . . . 1 Exploration Rate (%) 41 | 4 41 97 22 Regions Visited 3 Branch Regions 2 Pre-discovered Areas . | . . . . Known Exits Taken . | . . . . Unknown Exits Taken 3 | 1 1 1 . Scrap Searched 1 | . . 1 . Spaces Dug 34 | . . . 34 Terrain Destroyed 109 | . . 15 94 Melee 34 | . . . 34 Projectile . | . . . . AOE 75 | . . 15 60 Terrain Rammed . | . . . . Walls Destroyed . | . . . . Machines Disabled . | . . . . Actions | -11 -10 -10 -10 --------- Run | Yrd Mat Min Sub Total 1500 | 80 257 524 639 Wait 169 | . 4 8 157 Move 1184 | 62 219 504 399 Hop . | . . . . Pick Up 23 | 8 7 5 3 Fast Attach 8 | 6 1 1 . Attach 9 | . 1 2 6 Detach 4 | . 3 1 . Swap 17 | . 4 1 12 Drop 6 | . 5 1 . Fire 43 | 4 12 1 26 Melee 36 | . . . 36 Ram . | . . . . Kick . | . . . . Crush 1 | . 1 . . Escape Stasis . | . . . . Rewire . | . . . . Trap . | . . . . Miscellaneous . | . . . . Route ------- -11/Scrapyard -10/Materials (discovered 3 exits: [*Mat] / *Min x2) -10/Mines (discovered 3 exits: [*Mat x2] / [*Sub]) -10/Subcaves (discovered 2 exits: [*Mat] / [*Rec]) History --------- Turn | Location | Event 19 | -11/Scrapyard | Discovered new exit (range 16) 126 | -11/Scrapyard | Entered Materials 306 | -10/Materials | Discovered new exit (range 9) 308 | -10/Materials | Build established: Mutant 351 | -10/Materials | Discovered new exit (range 3) 425 | -10/Materials | Discovered new exit (range 9) 525 | -10/Materials | Entered Mines 553 | -10/Mines | A weapon hastily lodged in a ceiling crevice suddenly fell to the ground 659 | -10/Mines | Discovered new exit (range 10) 739 | -10/Mines | Learned Materials stockpile data 783 | -10/Mines | Discovered new exit (range 11) 880 | -10/Mines | Found the Drone Emporium 885 | -10/Mines | Found Prototype Device 885 | -10/Mines | Identified Splice Drone Bay 1200 | -10/Mines | Discovered new exit (range 13) 1227 | -10/Mines | Entered Subcaves 1227 | -10/Subcaves | Discovered new exit (range 12) 1349 | -10/Subcaves | Discovered new exit (range 10) 1388 | -10/Subcaves | Ambushed by Subdweller buried in earth 1834 | -10/Subcaves | Core integrity fell below 50% 1842 | -10/Subcaves | Crushed by falling debris 1844 | -10/Subcaves | Core integrity fell below 20% 1873 | -10/Subcaves | Lost 4 parts (1p1n1u1w) 2065 | -10/Subcaves | A swath of the cavern ceiling suddenly collapsed 2106 | -10/Subcaves | A swath of the cavern ceiling suddenly collapsed 2168 | -10/Subcaves | Destroyed self with Rocket Launcher Last Messages --------------- 02005_ Subatomizers dissect the Cobbler Unit. 02009_ Acquired 26 matter. 02013_ System corrupted: FCS attempts to trigger Lgt. Assault Rifle. 02013_ System corrupted: Lgt. Assault Rifle misfires. 02015_ Acquired 7 matter. 02018_ Acquired 13 matter. 02019_ Acquired 5 matter. 02019_ Subatomizers dissect the Cobbler Unit. 02021_ Acquired 6 matter. 02022_ Acquired 8 matter. 02022_ Acquired 11 matter. 02024_ Acquired 15 matter. 02024_ Acquired 11 matter. 02029_ Subatomizers dissect the Cobbler Unit. A swath of the cavern ceiling suddenly collapses. 02066_ Subatomizers dissect the Cobbler Unit. A swath of the cavern ceiling suddenly collapses. 02118_ Subatomizers dissect the Cobbler Unit, destroying it. 02138_ System corrupted: Matter fused (-10). 02144_ Subatomizers dissect the Wheel. Map ----- +----------------------------------------------------+ | #???# % ####" ### #??????????? | | ???????# #??##" ""# #??????????? | | ????????# #???#" ## #??????????? | | ???????## #??### "##????????????????????? | | ??????## % % #### "" "##????????????????????? | | ???????# #### ###?????????????????????? | | ???????##?##?# ## ### #####??????????????????? | | ?????#### #%## ######?# ##?????????????????? | | ?????# #?????## #?????????????????? | | ?????# ##????#" #?????????????????? | | ?????# # ### ###### "##????????????????? | | ?????#??#??# " #????????????????? | | ???????????# =" #????????????????? | | ??????????#% #; "##????????????????? | | ?? #????# % % #; " #????????????????? | | # #?????# ## # ""##????????????????? | | " #??????# ### ; ###?????????????????? | | #???????# % % ##;; ;; #???????????????????? | | #???????# ## ## ##; ;##???????????????????? | | #####???##?## ## ##;; &&;#????????????????????? | | # ##?####?###### ##; & ;;#??#?????????????????? | | # ### ##?????# ##;; ## ###???????????????? | | # ## ##????## ###; ##??????????????? | | # ########### #??????????????? | | # # # ; # ##??????????????? | | ss @ #?????????? | | = ###### ### # #??????????? | | # ##????####?#### ## ##? ##??????????? | | ####?????????????#### ##?###???????????????? | | # #????????????????????##????????????????????? | | # ####??????????????????????????????????????????? | | ####?????????????????????????????????????????????? | | ?????????????????????????????????????????????????? | | ?????????????????????????????????????????????????? | | ?????????????????????????????????????????????????? | | ?????????????????????????????????????????????????? | | ?????????????????????????????????????????????????? | | ?????????????????????????????????????????????????? | | ?????????????????????????????????????????????????? | | ?????????????????????????????????????????????????? | | ?????????????????????????????????????????????????? | | ?????????????????????????????????????????????????? | | ?????????????????????????????????????????????????? | | ?????????????????????????????????????????????????? | | | | | | | | | | | | | +----------------------------------------------------+ Best States ------------- Heat Dissipation 25 Energy Generation 10 Energy Capacity 250 Matter Stores 300 Matter Capacity 300 Sight Range 16 Terrain Scan Range 16 Terrain Scan Density 10 Evasion (%) 40 Recoil Reduction 2 Item Schematics ----------------- None Robot Schematics ------------------ None Fabricated ------------ Nothing Repaired ---------- Nothing Studied --------- None Alien Tech Used ----------------- None Achievements -------------- None Challenges ------------ None Game ------ Seed NavigationPortableBank Manual? 0 Play Time 00:12:31 Cumulative 302.6 hours Start 2025.12.01 @ 22:18:03 End 2025.12.02 @ 16:00:08 Sessions 3 Manual Loads 0 Difficulty Rogue Special Mode None Game No. 375 Rogue 375 Adventurer 0 Explorer 0 Win Type - Total 21 Types 13/0/3/1/1/0/1/1/0/1 Lore% 78 Gallery% 76 Achievement% 60 Wizard Run 0 Options --------- Layout 1 ASCII 0 Keyboard 1 Movement Numpad Keybinds 0 Fullscreen 2 Font 32/SmallcapsGlow Map View 77x35 Zoom Use 0% Tactical HUD 1 Map Filters NONE Filters NONE Steam 1 RUN: 853c40de-418e-4b1a-820d-ecd8692ac161